{"text_format":"2","workbook":"xlsx","n_sheets":9,"sheets":["Záradék","Összesítő","Irtás, föld- és sziklamunka","Szivárgóépítés, alagcsövezés","Síkalapozás","Helyszíni beton és vasbeton mun","Aljzatkészítés, hideg- és meleg","Épületgépészeti csővezeték szer","Épületgépészeti szerelvények és"],"not_rendered":{"charts":0,"images":0,"macros":0,"external_links":0,"defined_names":0,"comments":0,"pivot_tables":0},"unopened":[],"bounds":{"document_bytes":16777216,"sheet_cells":100000,"run_cost":"one","rows_first":2000,"rows_last":500,"rows_between":2000,"halvings":0,"cell_chars":16384,"cell_head_chars":4096},"cells_cut":0,"cells_raw":0,"read":"whole","date_system":"1900"}

{"sheet":"Záradék","index":0,"n_rows":33,"n_cols":4,"rows_kept":33,"cut":false,"hidden":false,"merged":[[0,0,0,3],[1,0,1,3],[2,0,2,3],[3,0,3,3],[26,2,26,3],[27,2,27,3],[28,2,28,3],[32,1,32,2],[4,0,4,3],[5,0,5,3],[6,0,6,3],[21,0,21,3]]}
{"$rows_empty":8}
["Név :SZTE GMF                          ",null,"                                       "]
["                                       ",null,"                                       "]
["Cím :Szeged, Moszkvai krt              ",null," Kelt:      20.. év...........hó...nap "]
["                                       ",null,"                                       "]
["                                       ",null,"                                       "]
["                                       ",null,"                                       "]
["A munka leírása:SZTE Moszkvai krt-on   ",null,"                                       "]
[" lefolyó vezeték csere                                                        "]
[]
["                                                                              "]
["                                                                              "]
["                                                                              "]
[]
["Költségvetés főösszesítő"]
["Megnevezés",null,"Anyagköltség","Díjköltség"]
["1. Építmény közvetlen költségei",null,{"$f":"ROUND(SUM(Összesítő!B2:B8),0)","v":0},{"$f":"ROUND(SUM(Összesítő!C2:C8),0)","v":0}]
["1.1 Közvetlen önköltség összesen",null,{"$f":"ROUND(C24,0)","v":0},{"$f":"ROUND(D24,0)","v":0}]
["2. Tartalékkeret vetítési alap",0.05]
["2.1 ÁFA vetítési alap",null,{"$f":"ROUND(C25+D25,0)","v":0}]
["2.2 Áfa",0.27,{"$f":"ROUND(C27*B28,0)","v":0}]
["3.  A munka ára",null,{"$f":"ROUND(C27+C28,0)","v":0}]
[]
[]
[]
[null,"Aláírás"]

{"sheet":"Összesítő","index":1,"n_rows":9,"n_cols":3,"rows_kept":9,"cut":false,"hidden":false,"merged":[]}
["Munkanem megnevezése","Anyag összege","Díj összege"]
["Irtás, föld- és sziklamunka",{"$f":"'Irtás, föld- és sziklamunka'!H16","v":0},{"$f":"'Irtás, föld- és sziklamunka'!I16","v":0}]
["Szivárgóépítés, alagcsövezés",{"$f":"'Szivárgóépítés, alagcsövezés'!H4","v":0},{"$f":"'Szivárgóépítés, alagcsövezés'!I4","v":0}]
["Síkalapozás",{"$f":"Síkalapozás!H4","v":0},{"$f":"Síkalapozás!I4","v":0}]
["Helyszíni beton és vasbeton munkák",{"$f":"'Helyszíni beton és vasbeton mun'!H6","v":0},{"$f":"'Helyszíni beton és vasbeton mun'!I6","v":0}]
["Aljzatkészítés, hideg- és melegburkolatok készítése",{"$f":"'Aljzatkészítés, hideg- és meleg'!H6","v":0},{"$f":"'Aljzatkészítés, hideg- és meleg'!I6","v":0}]
["Épületgépészeti csővezeték szerelése",{"$f":"'Épületgépészeti csővezeték szer'!H6","v":0},{"$f":"'Épületgépészeti csővezeték szer'!I6","v":0}]
["Épületgépészeti szerelvények és berendezések szerelése",{"$f":"'Épületgépészeti szerelvények és'!H4","v":0},{"$f":"'Épületgépészeti szerelvények és'!I4","v":0}]
["Összesen:",{"$f":"ROUND(SUM(B2:B8),0)","v":0},{"$f":"ROUND(SUM(C2:C8), 0)","v":0}]

{"sheet":"Irtás, föld- és sziklamunka","index":2,"n_rows":16,"n_cols":9,"rows_kept":16,"cut":false,"hidden":false,"merged":[]}
["Ssz.","Tételszám","Tétel szövege","Menny.","Egység","Anyag egységár","Díj egységre","Anyag összesen","Díj összesen"]
[1,"21-003-111.2","Földvisszatöltés munkagödörbe vagy  munkaárokba, tömörítés nélkül, réteges  elterítéssel, I-IV osztályú talajban, kézi erővel az anyag súlypontja karoláson belül, a vezetéket (műtárgyat) környező 50 cm-en túli szelvényen",2.6,"m3",0,0,{"$f":"ROUND(D2*F2, 0)","v":0},{"$f":"ROUND(D2*G2, 0)","v":0}]
[]
[2,"21-003-511.2","Munkaárok földkiemelése közművesített területen, kézi erővel, bármely konzisztenciályú talajban, dúcolás nélkül, 2,0 m2 szelvényig, IV osztályú talajban",8.8000000000000007,"m3",0,0,{"$f":"ROUND(D4*F4, 0)","v":0},{"$f":"ROUND(D4*G4, 0)","v":0}]
[]
[3,"21-004-411-0120401","Talajjavító réteg készítése vonalas  létesítményeknél, 3,00m szélességig vagy építményen belül, homokból Természetes szemmegosztású homok  TH 0/4 P-TT Nyékládháza",4.8,"m3",0,0,{"$f":"ROUND(D6*F6, 0)","v":0},{"$f":"ROUND(D6*G6, 0)","v":0}]
[]
[4,"21-008-102.10","Törmelék  konténerbe kihordása  kézi erővel.",3.8,"m3",0,0,{"$f":"ROUND(D8*F8, 0)","v":0},{"$f":"ROUND(D8*G8, 0)","v":0}]
[]
[5,"21-008-112.2","Döngölés gépi erővel száraz, földnedves III: fejtési talajosztályban.",15,"m2",0,0,{"$f":"ROUND(D10*F10, 0)","v":0},{"$f":"ROUND(D10*G10, 0)","v":0}]
[]
[6,"21-008-231","Tömörítés bármely tömörítési osztályban gépi erővel, vezeték felett és mellett, tömörítési fok 85%",7.4,"m3",0,0,{"$f":"ROUND(D12*F12, 0)","v":0},{"$f":"ROUND(D12*G12, 0)","v":0}]
[]
[7,"21-011-1.6","Fejtett föld felrakása szállítóeszközre, elszállítása",2.6,"m3",0,0,{"$f":"ROUND(D14*F14, 0)","v":0},{"$f":"ROUND(D14*G14, 0)","v":0}]
[]
[null,null,"Munkanem összesen:",{"$nulls":4},{"$f":"ROUND(SUM(H2:H15),0)","v":0},{"$f":"ROUND(SUM(I2:I15),0)","v":0}]

{"sheet":"Szivárgóépítés, alagcsövezés","index":3,"n_rows":4,"n_cols":9,"rows_kept":4,"cut":false,"hidden":false,"merged":[]}
["Ssz.","Tételszám","Tétel szövege","Menny.","Egység","Anyag egységár","Díj egységre","Anyag összesen","Díj összesen"]
[1,"22-011-1.6","Építési törmelék konténeres elszállítása, lerakása, lerakóhelyi díjjal. 4,0m3 kontener",2,"db",0,0,{"$f":"ROUND(D2*F2, 0)","v":0},{"$f":"ROUND(D2*G2, 0)","v":0}]
[]
[null,null,"Munkanem összesen:",{"$nulls":4},{"$f":"ROUND(SUM(H2:H3),0)","v":0},{"$f":"ROUND(SUM(I2:I3),0)","v":0}]

{"sheet":"Síkalapozás","index":4,"n_rows":4,"n_cols":9,"rows_kept":4,"cut":false,"hidden":false,"merged":[]}
["Ssz.","Tételszám","Tétel szövege","Menny.","Egység","Anyag egységár","Díj egységre","Anyag összesen","Díj összesen"]
[1,"23-003-2","Beton és vasbeton alapok készítése, beton talplemez készítése  C16 X0b(KK) képlékeny kavicsbeton",3.4,"m3",0,0,{"$f":"ROUND(D2*F2, 0)","v":0},{"$f":"ROUND(D2*G2, 0)","v":0}]
[]
[null,null,"Munkanem összesen:",{"$nulls":4},{"$f":"ROUND(SUM(H2:H3),0)","v":0},{"$f":"ROUND(SUM(I2:I3),0)","v":0}]

{"sheet":"Helyszíni beton és vasbeton mun","index":5,"n_rows":6,"n_cols":9,"rows_kept":6,"cut":false,"hidden":false,"merged":[]}
["Ssz.","Tételszám","Tétel szövege","Menny.","Egység","Anyag egységár","Díj egységre","Anyag összesen","Díj összesen"]
[1,"31-003-1.11","Vízszigetelés padlóburkolat alá, folyékony fólia",15,"m2",0,0,{"$f":"ROUND(D2*F2, 0)","v":0},{"$f":"ROUND(D2*G2, 0)","v":0}]
[]
[2,"31-003-228.8","Beton és kőbeton aljzat bontása, épületen belül, 10 cm vastagságig",15,"m2",0,0,{"$f":"ROUND(D4*F4, 0)","v":0},{"$f":"ROUND(D4*G4, 0)","v":0}]
[]
[null,null,"Munkanem összesen:",{"$nulls":4},{"$f":"ROUND(SUM(H2:H5),0)","v":0},{"$f":"ROUND(SUM(I2:I5),0)","v":0}]

{"sheet":"Aljzatkészítés, hideg- és meleg","index":6,"n_rows":6,"n_cols":9,"rows_kept":6,"cut":false,"hidden":false,"merged":[]}
["Ssz.","Tételszám","Tétel szövege","Menny.","Egység","Anyag egységár","Díj egységre","Anyag összesen","Díj összesen"]
[1,"42-011-2-0001141","Padlóburkolatok hordozószerkezeteinek  felület készítése, beltérben. Önterülő felületkiegyenlítés készítése 5 cm átlagos rétegvastagságban LB-KNAUF padlókiegyenlítő 3-15mm",15,"m2",0,0,{"$f":"ROUND(D2*F2, 0)","v":0},{"$f":"ROUND(D2*G2, 0)","v":0}]
[]
[2,"42-022-11.21.1","Padlóburkolatok készítése beltérben, beton alapfelületen, gres köporcelán lappal, kötésben vagy hálóban 3-5mm vtg. ragasztóba rakva 1-10mm fugaszélességgel. 20x20 lapmérettel",15,"m2",0,0,{"$f":"ROUND(D4*F4, 0)","v":0},{"$f":"ROUND(D4*G4, 0)","v":0}]
[]
[null,null,"Munkanem összesen:",{"$nulls":4},{"$f":"ROUND(SUM(H2:H5),0)","v":0},{"$f":"ROUND(SUM(I2:I5),0)","v":0}]

{"sheet":"Épületgépészeti csővezeték szer","index":7,"n_rows":6,"n_cols":9,"rows_kept":6,"cut":false,"hidden":false,"merged":[]}
["Ssz.","Tételszám","Tétel szövege","Menny.","Egység","Anyag egységár","Díj egységre","Anyag összesen","Díj összesen"]
[1,"81-000-18","Csővezetékek felbontása aljzatból, épületen belüli földárokból 120 NÁ keresztmetszetig",15,"m",0,0,{"$f":"ROUND(D2*F2, 0)","v":0},{"$f":"ROUND(D2*G2, 0)","v":0}]
[]
[2,"81-002-4-0001112","PVC-KGEM lefolyóvezeték szerelése, tokos gumigyűrűs kötésekkel, csőidomokkal,  szakaszos tömörségi próbákkal, földárokban NÁ 125mm",17,"m",0,0,{"$f":"ROUND(D4*F4, 0)","v":0},{"$f":"ROUND(D4*G4, 0)","v":0}]
[]
[null,null,"Munkanem összesen:",{"$nulls":4},{"$f":"ROUND(SUM(H2:H5),0)","v":0},{"$f":"ROUND(SUM(I2:I5),0)","v":0}]

{"sheet":"Épületgépészeti szerelvények és","index":8,"n_rows":4,"n_cols":9,"rows_kept":4,"cut":false,"hidden":false,"merged":[]}
["Ssz.","Tételszám","Tétel szövege","Menny.","Egység","Anyag egységár","Díj egységre","Anyag összesen","Díj összesen"]
[1,"82-001-102.41","PVC lefolyóvezeték kiegészítő szerkezeteinek felszerelése HL 071 zsír és homokfogó padlóösszefolyó",4,"db",0,0,{"$f":"ROUND(D2*F2, 0)","v":0},{"$f":"ROUND(D2*G2, 0)","v":0}]
[]
[null,null,"Munkanem összesen:",{"$nulls":4},{"$f":"ROUND(SUM(H2:H3),0)","v":0},{"$f":"ROUND(SUM(I2:I3),0)","v":0}]